bitfinex/quotes_ETHUSD_20250414
["timestamp","ask_amount","ask_price","bid_price","bid_amount"]
[1744649146679,6.14,1632.7,1632.5,13.03984]
[1744649146879,6.14,1632.7,1632.5,6.12521]
[1744649147096,6.14,1632.7,1632.4,12.25173]
[1744649147308,13.491285,1632.7,1632.4,6.12594]
[1744649147491,13.06974,1632.7,1632.3,13.04162]
[1744649147702,13.06974,1632.7,1632.4,6.12584]
[1744649147899,6.9449,1632.7,1632.5,6.12545]
[1744649148103,6.14,1632.8,1632.7,6.12482]
[1744649148302,6.14,1632.9,1632.7,6.12482]
[1744649148495,6.14,1632.9,1632.8,6.12444]
[1744649148810,6.14,1633.0,1632.8,6.12444]
[1744649149510,12.26379,1633.0,1632.7,12.24952]
[1744649149678,6.14,1633.0,1632.7,6.1247]
[1744649149882,6.14,1633.0,1632.8,6.12444]
[1744649150126,6.14,1633.2,1633.1,6.12332]
[1744649150486,6.14,1633.2,1633.0,14.43671]
[1744649150814,6.14,1633.2,1633.0,13.62651]
[1744649151117,6.14,1633.2,1633.1,6.12332]
[1744649151320,6.14,1633.2,1633.0,19.75005]
[1744649151611,6.14,1633.2,1633.0,13.62651]
[1744649151917,6.14,1633.2,1633.1,6.12332]
[1744649152314,0.05,1633.4,1633.2,6.12283]
[1744649152515,0.05,1633.4,1633.3,6.12257]
[1744649152684,0.05,1633.4,1633.2,6.12283]
[1744649153320,0.05,1633.4,1633.2,12.24566]
[1744649153612,0.05,1633.4,1633.2,6.12283]
[1744649154183,0.05,1633.4,1633.2,12.24561]
[1744649154383,0.05,1633.4,1633.1,6.94148]
[1744649154584,6.1231,1633.2,1633.0,7.503]
[1744649155119,13.06498,1633.3,1633.0,7.503]
[1744649155519,6.12298,1633.2,1633.0,7.503]
[1744649155685,6.12332,1633.1,1633.0,7.503]
[1744649156185,12.2469,1633.1,1632.7,6.92121]
[1744649156386,18.3869,1633.1,1632.7,13.04591]
[1744649156596,18.38689,1633.1,1632.7,13.04591]
[1744649156826,6.12371,1633.0,1632.7,6.1247]
[1744649157029,6.90421,1633.0,1632.7,12.2494]
[1744649157533,0.7805,1633.0,1632.7,12.2494]
[1744649157889,6.90443,1633.0,1632.7,6.1247]
[1744649158231,8.3927419,1633.0,1632.7,6.12478]
[1744649158599,8.3927319,1633.0,1632.7,6.12478]
[1744649158789,8.3926719,1633.0,1632.7,6.12478]
[1744649159547,6.14,1633.1,1632.6,7.501]
[1744649159847,6.14,1633.1,1632.9,6.12381]
[1744649160027,6.14,1633.1,1633.0,6.12369]
[1744649160360,6.14,1633.1,1632.9,6.12381]
[1744649160494,6.14,1633.1,1633.0,6.12369]
[1744649160695,13.04497,1633.2,1632.8,6.94048]
[1744649160946,8.226397,1633.2,1632.7,6.12474]
[1744649161097,6.12395,1633.0,1632.7,6.12479]
[1744649161296,6.12419,1632.9,1632.6,13.62608]
[1744649161502,13.07238,1632.8,1632.6,7.501]
[1744649161691,0.8231,1632.8,1632.6,7.501]
[1744649161897,0.8231,1632.8,1632.6,13.62611]
[1744649162329,18.38846,1632.9,1632.6,15.601227]
[1744649162330,6.90158,1632.9,1632.6,15.601227]
[1744649162534,6.90158,1632.9,1632.6,19.75111]
[1744649162740,6.90158,1632.9,1632.6,7.501]
[1744649162741,0.7773,1632.9,1632.6,7.501]
[1744649162973,6.90277,1632.6,1632.3,53.8813]
[1744649163538,0.7773,1632.6,1632.4,6.12574]
[1744649163774,0.7773,1632.6,1632.4,12.25157]
[1744649163981,6.88312,1632.8,1632.4,6.000657]
[1744649164280,6.88301,1632.8,1632.3,53.88118]
[1744649164481,6.12514,1632.7,1632.4,6.12582]
[1744649165075,6.88301,1632.8,1632.3,47.755]
[1744649165376,6.88301,1632.8,1632.4,6.12584]
[1744649165377,12.24984,1632.7,1632.4,6.12584]
[1744649165536,6.12519,1632.6,1632.3,6.12632]
[1744649165728,6.12519,1632.6,1632.3,12.25253]
[1744649165928,0.7585,1632.8,1632.5,6.12544]
[1744649166181,6.8833,1632.8,1632.4,6.12579]
[1744649166443,12.24991,1632.7,1632.4,6.12579]
[1744649166670,6.12493,1632.7,1632.4,13.476801]
[1744649166847,6.12493,1632.7,1632.4,12.25163]
[1744649167032,13.00751,1632.8,1632.5,6.12555]
[1744649167605,12.24988,1632.7,1632.4,6.12579]
[1744649167748,6.12486,1632.7,1632.4,6.12579]
[1744649168285,1.300791,1632.7,1632.2,13.05889]
[1744649168448,6.12563,1632.5,1632.2,6.93228]
[1744649168653,6.12596,1632.4,1632.1,19.75512]
[1744649168869,13.07241,1632.5,1632.2,6.12668]
[1744649169197,2.128141,1632.5,1632.1,7.501]
[1744649169484,2.128141,1632.5,1631.7,6.12839]
[1744649169485,6.12747,1632.0,1631.7,6.12839]
[1744649169688,6.12783,1631.9,1631.6,13.02311]
[1744649169886,0.8196,1632.0,1631.7,6.12855]
[1744649170035,0.8196,1632.2,1631.9,6.12769]
[1744649170345,0.8196,1632.2,1632.0,6.12732]
[1744649170550,16.02091,1632.4,1632.0,12.25464]
[1744649170749,0.7686,1632.4,1632.0,6.12732]
[1744649171068,6.12664,1632.3,1632.0,6.12734]
[1744649171389,6.12672,1632.2,1631.9,6.12768]
[1744649171537,6.12672,1632.2,1631.9,6.12781]
[1744649171969,6.12713,1632.1,1631.8,12.25622]
[1744649172301,6.12794,1631.9,1631.6,12.25776]
[1744649172638,6.12794,1631.9,1631.6,12.25761]
[1744649172974,6.91281,1632.0,1631.7,6.12845]
[1744649173148,6.91281,1632.0,1631.6,6.12889]
[1744649173149,0.7853,1632.0,1631.8,6.12795]
[1744649173347,0.7712,1632.2,1631.9,12.25542]
[1744649173684,6.89801,1632.2,1631.9,6.12771]
[1744649174170,6.89792,1632.2,1631.9,6.12771]
[1744649175073,0.7712,1632.2,1632.0,6.12743]
[1744649175241,6.89791,1632.2,1631.9,12.25542]
[1744649175442,6.89791,1632.2,1631.9,12.25541]
[1744649175638,0.7857,1632.4,1632.2,6.12657]
[1744649175838,6.91175,1632.4,1632.1,6.12695]
[1744649176042,13.03785,1632.4,1632.1,6.12692]
[1744649176263,13.03787,1632.4,1632.1,6.12692]
[1744649176577,13.03781,1632.4,1632.0,12.25468]
[1744649176750,13.038,1632.4,1632.0,12.25465]
[1744649176950,6.91171,1632.4,1632.1,6.12701]
[1744649177146,6.12643,1632.3,1632.0,6.12734]
[1744649177351,8.215463,1632.4,1632.1,6.127]
[1744649177751,6.12646,1632.3,1632.0,6.12741]
[1744649177995,6.12672,1632.2,1631.9,6.92423167]
[1744649178175,6.12646,1632.3,1632.0,6.12734]
[1744649178340,12.25305,1632.3,1632.0,6.12734]
[1744649178536,6.1269,1632.2,1631.9,6.12775]
[1744649178736,6.12727,1632.1,1631.8,6.95637]
[1744649178937,13.05949,1632.1,1631.7,19.73982]
[1744649179143,6.93207,1632.1,1631.8,6.12814]
[1744649179540,6.93207,1632.1,1631.7,19.74]
[1744649179742,6.93207,1632.1,1631.8,6.128]
[1744649180051,6.93202,1632.1,1631.8,6.128]
[1744649180393,6.12815,1631.9,1631.7,7.483]
[1744649180675,6.88221,1631.8,1631.4,6.1296]
[1744649180843,13.0107,1631.8,1631.4,12.25916]
[1744649181239,6.12859,1631.7,1631.4,6.12956]
[1744649181660,6.12859,1631.7,1631.4,12.25912]
[1744649181876,6.88228,1631.8,1631.3,7.484]
[1744649182084,6.88228,1631.8,1631.4,6.1297]
[1744649182300,6.12922,1631.6,1631.3,13.614]
[1744649182473,12.25844,1631.6,1631.3,13.614]
[1744649182790,12.25844,1631.6,1631.3,7.484]
[1744649183005,6.88233,1631.8,1631.4,6.12942]
[1744649183202,6.12858,1631.7,1631.4,6.12942]
[1744649183361,2.10046805,1631.8,1631.3,13.61397]
[1744649183560,12.2585,1631.6,1631.3,7.484]
[1744649184187,1.34646805,1631.8,1630.9,4.08477354]
[1744649184372,6.12979,1631.4,1631.0,6.13108]
[1744649184677,12.26056,1631.3,1630.9,6.92481]
[1744649185010,12.2605,1631.3,1631.0,6.13107]
[1744649185157,6.13025,1631.3,1630.9,7.617391]
[1744649185357,6.13025,1631.3,1631.0,6.13118]
[1744649185666,6.12984,1631.4,1631.0,6.13108]
[1744649185871,6.821554,1631.4,1631.1,6.13079]
[1744649186059,6.13011,1631.3,1631.0,6.13108]
[1744649186459,6.13087,1631.1,1630.8,6.13182]
[1744649186878,12.26193,1631.1,1630.8,6.13182]
[1744649187196,6.13131,1631.0,1630.7,8.3069]
[1744649187396,6.13171,1630.9,1630.7,7.485]
[1744649187571,6.744391,1631.0,1630.7,7.485]
[1744649187758,12.875771,1631.0,1630.7,7.485]
[1744649187957,6.13186,1630.9,1630.7,7.485]
[1744649188170,12.9382491,1630.9,1630.7,7.485]
[1744649188499,6.8062791,1630.9,1630.5,0.7963]
[1744649188707,6.13234,1630.7,1630.4,6.1333]
[1744649189018,1.4473991,1630.9,1630.3,14.44459]
[1744649189311,0.7729,1631.1,1630.5,0.8238]
[1744649189519,0.8332,1631.3,1630.8,0.821]
[1744649189688,6.96358,1631.3,1630.9,6.13144]
[1744649189886,6.13061,1631.2,1630.8,6.95289]
[1744649190071,0.613061,1631.1,1630.8,6.95282]
[1744649190273,6.744011,1631.1,1630.8,0.821]
[1744649190513,6.744011,1631.1,1630.7,12.26452]
[1744649190806,6.13095,1631.1,1630.8,6.13187]
[1744649191217,6.13046,1631.2,1630.9,6.13156]
[1744649191472,3.8332,1631.3,1631.0,6.13115]
[1744649191708,0.8332,1631.3,1631.0,12.2623]
[1744649191902,12.25966,1631.4,1631.0,12.2623]
[1744649192108,6.12977,1631.4,1631.0,12.2623]
[1744649192313,12.25966,1631.4,1631.0,12.2623]
[1744649192609,12.25966,1631.4,1631.0,6.13115]
[1744649192907,6.13008,1631.3,1631.0,6.13115]
[1744649193403,12.26052,1631.3,1630.9,13.0531]
[1744649193605,6.13008,1631.3,1631.0,6.13119]
[1744649193813,6.12976,1631.4,1631.0,12.26228]
[1744649194012,12.25966,1631.4,1631.0,6.13109]
[1744649194214,6.12976,1631.4,1631.0,12.26211]
[1744649194380,12.25967,1631.4,1631.0,12.26211]
[1744649194580,9.89646,1631.5,1631.0,1.435752]
[1744649194780,6.89646,1631.5,1631.2,6.13042]
[1744649194982,6.129,1631.6,1631.2,6.13031]
[1744649195205,6.129,1631.6,1631.3,6.12995]
[1744649195504,6.12972,1631.4,1631.0,6.13112]
[1744649195707,6.742692,1631.4,1631.0,6.13103]
[1744649196020,6.13016,1631.3,1630.9,6.9216]
[1744649196176,6.13053,1631.2,1630.9,6.9216]
[1744649196376,6.12804,1631.9,1631.5,6.1291]
[1744649196608,0.8124,1631.9,1631.7,6.12833]
[1744649196795,6.94023,1631.9,1631.5,6.89945]
[1744649197002,0.694023,1631.8,1631.5,13.02862]
[1744649197316,0.694023,1631.8,1631.6,6.1288]
[1744649197511,6.12858,1631.7,1631.5,0.7703]
[1744649197703,6.12858,1631.7,1631.4,6.12959]
[1744649197901,1.2951113,1631.7,1631.3,0.7735]
[1744649198087,6.12944,1631.5,1631.2,6.13031]
[1744649198287,7.642473,1631.8,1631.2,0.06130129]
[1744649198491,13.771043,1631.8,1631.4,6.91006]
[1744649199292,7.642473,1631.8,1631.5,6.12917]
[1744649199501,7.642473,1631.8,1631.4,6.91015]
[1744649199706,6.8930073,1631.7,1631.1,8.223]
[1744649200010,3.0,1631.9,1631.1,8.223]
[1744649200011,6.12796,1631.9,1631.4,0.754]
[1744649200203,6.93292,1632.0,1631.4,6.88367]
[1744649200393,6.93292,1632.0,1631.7,6.12854]
[1744649200715,14.40122,1632.2,1631.8,6.12805]
[1744649200880,6.93222,1632.2,1631.8,6.12804]
[1744649201087,0.693222,1632.1,1631.8,6.12804]
[1744649201316,6.93222,1632.2,1631.9,6.12753]
[1744649201482,6.93143,1632.4,1632.1,6.12682]
[1744649201683,6.1265,1632.3,1631.9,6.12769]
[1744649201882,6.93141,1632.4,1632.1,6.12706]
[1744649202217,13.05762,1632.4,1632.1,6.12706]
[1744649202380,8.237172,1632.4,1632.1,6.12706]
[1744649202588,2.111162,1632.4,1632.1,6.12697]
[1744649202786,0.8054,1632.4,1632.2,6.12667]
[1744649203026,0.8054,1632.4,1631.9,7.468]
[1744649203027,6.1265,1632.3,1631.9,7.468]
[1744649203182,6.12671,1632.2,1631.9,13.5957]
[1744649203382,6.1272,1632.1,1631.9,7.468]
[1744649203689,6.88445,1632.0,1631.6,14.3889]
[1744649203903,6.88445,1632.0,1631.7,13.69582]
[1744649204117,6.87877,1632.6,1631.8,0.8692828]
[1744649204318,0.7535,1632.6,1632.3,6.12619]
[1744649204517,11.55177354,1633.0,1632.4,6.12587]
[1744649204518,6.12457,1632.8,1632.4,6.12587]
[1744649204727,6.12511,1632.7,1632.3,6.12617]
[1744649205036,6.12451,1632.8,1632.5,6.12554]
[1744649205260,0.7984,1633.3,1632.5,6.12557]
[1744649205397,6.12345,1633.1,1632.7,6.12455]
[1744649205733,6.1237,1633.0,1632.7,6.12455]
[1744649205929,6.12345,1633.1,1632.7,12.24924]
[1744649206495,0.7984,1633.3,1632.8,6.12444]
[1744649206707,6.12346,1633.1,1632.8,6.12444]
[1744649206906,12.24627,1633.2,1632.8,12.24877]
[1744649207106,0.7984,1633.3,1633.0,6.12342]
[1744649207319,6.92103,1633.3,1632.9,6.12394]
[1744649207532,6.92103,1633.3,1632.9,12.24787]
[1744649207837,13.0438,1633.3,1632.9,12.24787]
[1744649208021,13.04379,1633.3,1632.9,12.24783]
[1744649208337,0.05,1633.4,1633.0,6.12369]
[1744649208629,6.12277,1633.3,1632.9,19.71384]
[1744649208931,0.05,1633.4,1633.1,6.12299]
[1744649209133,6.17236,1633.4,1633.1,6.12299]
[1744649209329,0.05,1633.4,1632.9,13.58995]
[1744649209498,12.29468,1633.4,1633.0,12.24712]
[1744649209700,6.17227,1633.4,1633.0,12.24712]
[1744649210032,6.17227,1633.4,1633.1,6.1233]
[1744649210629,12.29464,1633.4,1633.1,6.1233]
[1744649210951,6.12307,1633.2,1633.0,0.8204]
[1744649211114,12.24569,1633.3,1633.0,0.8204]
[1744649211431,6.17234,1633.4,1633.1,6.1232]
[1744649212002,12.29478,1633.4,1633.1,6.1232]
[1744649212349,6.12291,1633.3,1633.0,0.8204]
[1744649212752,0.05,1633.4,1633.1,6.12299]
[1744649213064,0.05,1633.4,1633.3,6.12257]
[1744649213195,0.05,1633.4,1633.3,6.88877]
[1744649214036,0.05,1633.4,1633.3,0.7662]
[1744649214395,6.1723,1633.4,1633.1,6.94519]
[1744649215410,6.1723,1633.4,1633.1,13.06836]
[1744649215611,6.1723,1633.4,1633.1,6.94517]
[1744649215823,0.05,1633.4,1633.1,6.94517]
[1744649216012,0.05,1633.4,1633.2,6.12273]
[1744649216328,0.05,1633.4,1633.3,6.12257]
[1744649216699,0.05,1633.4,1633.3,6.92527]
[1744649217717,0.05,1633.4,1633.2,6.12273]
[1744649218519,0.05,1633.4,1633.2,12.24556]
[1744649218847,0.05,1633.4,1633.3,6.12257]
[1744649219235,0.05,1633.4,1633.2,12.24556]
[1744649219451,0.05,1633.4,1633.2,13.0055647]
[1744649219854,0.05,1633.4,1633.3,6.12257]
[1744649220234,0.05,1633.4,1633.2,6.8827347]
[1744649220740,0.05,1633.4,1633.3,6.12257]
[1744649221243,0.05,1633.4,1633.3,7.42310047]
[1744649221572,0.05,1633.4,1633.3,8.21970047]
[1744649221732,0.05,1633.4,1633.3,8.28092089]
[1744649222366,0.05,1633.4,1633.3,8.28091752]
[1744649222923,0.05,1633.4,1633.3,12.28091752]
[1744649223147,0.05,1633.4,1633.3,4.85781705]
[1744649223351,6.17219,1633.4,1633.3,4.0]
[1744649223528,12.24554,1633.3,1632.9,13.0616]
[1744649223729,0.8246,1633.3,1632.8,7.46]
[1744649223964,6.12371,1633.0,1632.8,7.46]
[1744649224135,6.12407,1632.9,1632.8,7.46]
[1744649224773,6.14,1633.0,1632.9,6.12407]
[1744649225179,6.14,1633.0,1632.8,8.2335]
[1744649225555,6.14,1633.0,1632.8,14.35775]
[1744649225739,6.14,1633.0,1632.8,8.2335]
[1744649225940,6.14,1633.0,1632.8,14.35778]
[1744649226439,6.14,1633.0,1632.8,15.793558]
[1744649226833,6.14,1633.0,1632.8,21.917828]
[1744649227032,6.14,1633.0,1632.9,6.12407]
[1744649227466,6.14,1633.0,1632.8,15.793548]
[1744649227671,6.14,1633.0,1632.8,21.917868]
[1744649227873,6.14,1633.0,1632.9,6.12407]
[1744649228040,6.14,1633.0,1632.9,2.1917868]
[1744649228370,6.12323,1633.2,1632.8,21.917848]
[1744649228371,6.12334,1633.1,1632.8,21.917848]
[1744649228746,18.38653,1633.2,1632.8,21.917848]
[1744649228946,18.38636,1633.2,1632.8,21.917848]
[1744649229159,18.38636,1633.2,1632.8,15.793548]
[1744649229368,12.26312,1633.2,1632.9,6.12388]
[1744649229870,6.14,1633.2,1633.0,6.12369]
[1744649230233,6.14,1633.2,1633.0,12.24715]
[1744649230433,6.14,1633.2,1632.9,14.4396838]
[1744649230837,12.26311,1633.2,1632.9,2.1917538]
[1744649231140,12.26311,1633.2,1632.8,21.917878]
[1744649231368,6.14,1633.2,1632.9,6.12385]
[1744649231868,6.14,1633.2,1632.9,12.2479]
[1744649232475,12.263,1633.2,1632.8,15.793628]
[1744649232769,6.12363,1633.1,1632.8,8.895778]
[1744649232956,12.24732,1633.1,1632.8,7.46]
[1744649233161,6.12377,1633.0,1632.8,7.46]
[1744649233939,6.12363,1633.1,1632.8,7.46]
[1744649234372,12.24719,1633.1,1632.8,7.46]
[1744649234575,13.06842,1633.2,1632.8,7.46]
[1744649234781,6.14,1633.2,1633.0,6.12369]
[1744649235078,6.19,1633.4,1633.2,6.12289]
[1744649235475,6.19,1633.4,1633.3,6.12257]
[1744649235864,0.05,1633.4,1633.3,6.91877]
[1744649236177,0.05,1633.4,1633.3,8.97325838]
[1744649236543,0.05,1633.4,1633.3,9.03447317]
[1744649236778,0.05,1633.4,1633.3,11.97325838]
[1744649237364,0.05,1633.4,1633.3,15.97325838]
[1744649237573,0.05,1633.4,1633.3,20.05803192]
[1744649238066,0.4010058,1633.6,1633.5,6.92092]
[1744649238265,0.4010058,1633.6,1633.5,19.37118911]
[1744649238477,0.4010058,1633.6,1633.5,19.30998754]
[1744649238788,0.4010058,1633.6,1633.5,11.225214]
[1744649240046,0.4010058,1633.6,1633.5,8.225214]
[1744649240241,0.4010058,1633.6,1633.5,6.92092]
[1744649240550,0.4010058,1633.6,1633.5,6.98212384]
[1744649240981,0.4010058,1633.6,1633.5,6.92092]
[1744649241282,0.4010058,1633.6,1633.3,2.83478838]
[1744649241484,0.4010058,1633.6,1633.5,6.12182]
[1744649241792,0.4010058,1633.6,1633.5,10.12182]
[1744649242292,0.4010058,1633.6,1633.5,10.18302894]
[1744649242485,0.4010058,1633.6,1633.5,10.12182]
[1744649243056,5.8e-06,1633.6,1633.5,14.47472]
[1744649243272,5.8e-06,1633.6,1633.5,16.94285735]
[1744649243674,5.8e-06,1633.6,1633.5,12.94285735]
[1744649244246,0.05,1634.4,1634.2,6.11907]
[1744649244581,0.05,1634.4,1634.3,6.11882]
[1744649244977,0.8289,1634.3,1634.1,7.44]
[1744649245280,19.906652,1634.3,1634.1,7.44]
[1744649245503,7.668662,1634.3,1634.1,13.55948]
[1744649245697,6.9689,1634.3,1634.1,13.55948]
[1744649245883,13.08786,1634.3,1634.1,7.44]
[1744649246085,6.1192,1634.2,1634.1,7.44]
[1744649246600,13.08786,1634.3,1634.1,7.44]
[1744649246891,6.1192,1634.2,1634.1,11.44]
[1744649247072,6.1192,1634.2,1634.1,7.44]
[1744649247073,6.57054002,1634.2,1634.1,7.44]
[1744649249092,0.45134002,1634.2,1634.1,7.44]
[1744649249292,19.20686,1634.3,1634.1,7.44]
[1744649249509,6.1192,1634.2,1634.1,7.44]
[1744649249812,15.013546,1634.3,1634.1,7.44]
[1744649250107,6.9689,1634.3,1634.1,7.44]
[1744649250471,13.08804,1634.3,1634.1,7.44]
[1744649250804,6.1192,1634.2,1634.1,7.44]
[1744649251417,13.08791,1634.3,1634.1,7.44]
[1744649251585,19.20706,1634.3,1634.1,7.44]
[1744649251912,6.9689,1634.3,1634.1,7.44]
[1744649252118,0.05,1634.4,1634.2,6.9461]
[1744649252269,0.05,1634.4,1634.2,6.94598]
[1744649252473,0.05,1634.4,1634.2,7.00716485]
[1744649253303,0.05,1634.4,1634.3,6.11882]
[1744649253605,0.05,1634.4,1634.1,8.184]
[1744649253606,6.11888,1634.3,1634.1,7.44]
[1744649253801,6.947,1634.4,1634.1,7.44]
[1744649254007,6.947,1634.4,1634.1,19.67903]
[1744649254008,0.8282,1634.4,1634.1,19.67903]
[1744649254211,6.94667,1634.4,1634.1,7.44]
[1744649254721,6.94667,1634.4,1634.1,13.55945]
[1744649255102,6.94667,1634.4,1634.1,21.729723]
[1744649255294,13.06546,1634.4,1634.1,15.610273]
[1744649255813,6.94667,1634.4,1634.1,15.610273]
[1744649256110,6.94667,1634.4,1634.1,21.729723]
[1744649256414,6.16847,1634.4,1634.1,21.729723]
[1744649256626,0.05,1634.4,1634.3,6.11882]
[1744649256778,0.05,1634.4,1634.2,2.1729723]
[1744649257006,6.16848,1634.4,1634.1,19.67884]
[1744649257359,6.11901,1634.3,1634.1,7.44]
[1744649257645,0.05,1634.4,1634.3,6.11882]
[1744649257805,0.05,1634.4,1634.1,13.55949]
[1744649258007,0.05,1634.4,1634.2,6.11909]
[1744649258248,0.05,1634.4,1634.2,12.23819]
[1744649258754,0.05,1634.4,1634.2,6.11909]
[1744649259553,0.05,1634.4,1634.1,8.2054]
[1744649259554,6.16846,1634.4,1634.1,14.32485]
[1744649260456,6.16846,1634.4,1634.1,20.44429]
[1744649260802,12.28723,1634.4,1634.1,14.32484]
[1744649261099,6.1192,1634.2,1634.1,7.44]
[1744649261303,6.9343,1634.2,1634.1,7.44]
[1744649261833,7.38207077,1634.2,1634.1,7.44]
[1744649262136,6.14,1634.3,1634.1,7.44]
[1744649262303,6.14,1634.3,1634.1,8.2587]
[1744649262617,6.14,1634.3,1634.1,15.816087]
[1744649262818,18.378,1634.3,1634.1,11.44]
[1744649263031,6.9341,1634.2,1634.1,11.44]
[1744649263200,6.9341,1634.2,1634.1,7.44]
[1744649265038,6.11957,1634.1,1633.6,47.707]
[1744649265252,6.12107,1633.7,1633.6,47.707]
[1744649265401,6.12195,1633.5,1633.1,14.36163]
[1744649265615,6.12195,1633.5,1633.2,6.12293]
[1744649265616,12.26195,1633.5,1633.2,6.12293]
[1744649265816,6.12241,1633.4,1633.1,14.36163]
[1744649266021,0.8039,1633.2,1633.1,7.418]
[1744649266224,6.12344,1633.1,1632.8,47.716]
[1744649266436,6.14,1633.2,1633.0,6.12352]
[1744649267338,6.14,1633.2,1632.9,6.18523314]
[1744649267544,12.26295,1633.2,1632.9,12.24791]
[1744649267704,6.14,1633.2,1633.0,6.12358]
[1744649268639,6.14,1633.2,1632.9,12.120411]
[1744649269036,12.26295,1633.2,1632.9,12.120411]
[1744649269240,12.24707,1633.1,1632.8,47.716]
[1744649269446,0.7717,1633.1,1632.8,47.716]
[1744649269615,12.26302,1633.2,1632.8,47.716]
[1744649269616,6.14,1633.2,1632.9,6.12378]
[1744649269817,6.14,1633.2,1633.0,6.12368]
[1744649270236,6.14,1633.2,1633.0,12.24736]
[1744649270532,6.14,1633.2,1633.0,7.348416]
[1744649270844,6.14,1633.2,1633.0,1.224736]
[1744649271042,6.12385,1633.0,1632.8,47.716]
[1744649271222,6.12385,1633.0,1632.8,0.012]
[1744649271434,6.12369,1633.1,1632.8,0.012]
[1744649271617,12.24724,1633.1,1632.8,0.012]
[1744649272164,6.12393,1633.0,1632.8,0.012]
[1744649272464,6.12407,1632.9,1632.8,0.012]
[1744649272958,12.26407,1632.9,1632.8,4.012]
[1744649273443,12.26407,1632.9,1632.8,0.012]
[1744649273647,14.17854,1632.9,1632.8,0.012]
[1744649273847,14.99024,1632.9,1632.8,0.012]
[1744649275845,13.07577,1632.9,1632.8,0.012]
[1744649277771,6.9517,1632.9,1632.8,0.012]
[1744649277937,6.14,1632.9,1632.8,6.13644]
[1744649278259,6.14,1632.9,1632.8,0.012]
[1744649278667,6.14,1632.9,1632.8,6.750101]
[1744649278973,6.14,1633.2,1632.9,6.12376]
[1744649279129,12.263,1633.2,1632.9,6.12376]
[1744649279328,6.14,1633.2,1632.9,12.2477]
[1744649279546,6.14,1633.2,1633.0,1.22477]
[1744649279741,6.14,1633.2,1633.0,6.12367]
[1744649279974,6.14,1633.2,1632.8,0.625661]
[1744649279975,6.14,1633.2,1632.8,6.81120514]
[1744649280282,6.14,1633.2,1632.9,6.12376]
[1744649280490,6.14,1633.2,1632.8,6.750081]
[1744649280787,6.12308,1633.2,1632.9,6.93867]
[1744649280951,6.12308,1633.2,1632.9,8.3075411]
[1744649281137,12.2463,1633.2,1632.9,2.1835711]
[1744649281344,6.93664,1633.2,1632.8,6.13631]
[1744649281586,6.12345,1633.1,1632.8,6.13639]
[1744649281749,6.93663,1633.2,1632.8,12.32195829]
[1744649282083,6.14,1633.3,1633.0,6.12359]
[1744649282285,6.14,1633.3,1633.1,12.24647]
[1744649282493,6.14,1633.7,1633.3,0.7688]
[1744649282637,0.7921,1633.8,1633.7,6.12107]
[1744649282638,6.14,1633.8,1633.7,6.12107]
[1744649282841,6.12074,1633.8,1633.5,6.12171]
[1744649283081,12.26069,1633.9,1633.5,6.12168]
[1744649283283,12.26069,1633.9,1633.6,6.733488]
[1744649283575,12.26069,1633.9,1633.2,6.12263]
[1744649283576,6.12193,1633.5,1633.2,6.12263]
[1744649283872,0.8033,1633.6,1633.3,4.0]
[1744649284065,18.38237,1633.7,1633.3,10.12231]
[1744649284265,18.38237,1633.7,1633.3,16.24477]
[1744649284664,18.38237,1633.7,1633.3,4.0]
[1744649284665,6.12159,1633.6,1633.3,4.0]
[1744649284865,7.959827,1633.6,1633.3,4.0]
[1744649285077,6.12219,1633.4,1633.3,4.0]
[1744649285378,20.67636354,1633.4,1633.3,4.0]
[1744649285563,20.67636354,1633.4,1632.8,0.012]
[1744649285564,6.12407,1632.9,1632.8,0.012]
[1744649285885,13.566804,1632.9,1632.8,0.012]
[1744649286178,14.02912835,1632.9,1632.8,0.012]
[1744649288462,7.90505835,1632.9,1632.8,0.012]
[1744649288661,6.14,1632.9,1632.8,0.012]
[1744649288857,13.03247,1633.2,1632.8,12.26077]
[1744649289044,12.26297,1633.2,1632.9,6.91426]
[1744649289250,6.14,1633.2,1632.9,6.91426]
[1744649289589,6.12156,1633.6,1633.1,6.12332]
[1744649289754,6.12156,1633.6,1633.3,6.91282]
[1744649289955,6.12156,1633.6,1633.3,0.7903]
[1744649290186,12.26112,1633.7,1633.3,0.7903]
[1744649290389,18.38025,1634.0,1633.3,9.91281]
[1744649290551,0.7793,1634.1,1633.4,7.942071]
[1744649290759,6.11895,1634.3,1633.9,6.12032]
[1744649291087,6.11895,1634.3,1634.0,6.11985]
[1744649291555,6.11895,1634.3,1633.9,12.30150619]
[1744649291879,6.11933,1634.2,1633.8,13.02616]
[1744649292184,12.2396,1634.1,1633.8,0.7849]
[1744649292482,6.11972,1634.1,1633.7,6.12087]
[1744649292647,6.12006,1634.0,1633.7,6.12087]
[1744649293067,6.11957,1634.1,1633.5,7.406]
[1744649293285,6.12125,1633.7,1633.5,7.406]
[1744649293473,12.24258,1633.7,1633.5,7.406]
[1744649293788,6.12125,1633.7,1633.5,7.406]